bitfinex/quotes_SOLUSD_20250823
["timestamp","ask_amount","ask_price","bid_price","bid_amount"]
[1755916514290,0.62,196.07,196.0,7.00876945]
[1755916514800,0.62,196.07,196.01,7.00876945]
[1755916514997,0.62,196.07,196.0,7.00876945]
[1755916515196,7.62876945,196.07,196.0,7.67876945]
[1755916515374,0.62,196.07,196.0,7.67876945]
[1755916515579,7.00876945,196.05,195.98,0.03]
[1755916515779,7.62876945,196.06,195.99,7.00876945]
[1755916515998,0.62,196.05,195.98,0.03]
[1755916516199,7.00876945,196.04,195.98,0.03]
[1755916516393,47.28,196.03,195.98,0.03]
[1755916516798,0.62,196.02,195.98,0.03]
[1755916517586,53.66876945,196.03,195.98,0.03]
[1755916517879,0.62,196.04,195.98,0.7]
[1755916518080,7.00876945,196.02,195.98,0.03]
[1755916518285,7.62876945,196.01,195.98,0.03]
[1755916518483,0.62,196.01,195.98,0.03]
[1755916518782,0.62,196.0,195.98,0.03]
[1755916518989,7.62876945,196.01,195.98,0.03]
[1755916519285,7.00876945,196.01,195.98,0.03]
[1755916519483,0.59,196.0,195.96,0.03]
[1755916519825,79.0,195.99,195.96,0.03]
[1755916520033,46.68,195.98,195.96,0.03]
[1755916520323,46.68,195.97,195.96,0.03]
[1755916520601,79.0,195.99,195.96,0.03]
[1755916520777,46.66,195.97,195.96,0.03]
[1755916521182,47.25,195.97,195.96,0.03]
[1755916521601,46.66,195.97,195.96,0.03]
[1755916522201,47.25,195.97,195.96,0.03]
[1755916522400,46.66,195.97,195.96,0.03]
[1755916522612,47.25,195.97,195.96,0.03]
[1755916522906,46.66,195.97,195.96,0.03]
[1755916523084,47.25,195.97,195.96,0.03]
[1755916523286,54.25876945,195.97,195.96,0.03]
[1755916523505,47.25,195.97,195.96,0.03]
[1755916523804,53.66876945,195.97,195.96,0.03]
[1755916524400,46.66,195.97,195.96,0.03]
[1755916524795,46.56,195.97,195.96,0.03]
[1755916525784,46.5,195.97,195.96,0.03]
[1755916526611,53.50876945,195.97,195.96,0.03]
[1755916527108,60.51753945,195.97,195.96,0.03]
[1755916527318,53.50877,195.97,195.96,0.03]
[1755916527489,60.51753945,195.97,195.96,0.03]
[1755916527908,7.00877,195.97,195.96,0.03]
[1755916528094,60.37753945,195.97,195.96,0.03]
[1755916528499,53.95877,195.97,195.96,0.03]
[1755916528828,53.36877,195.97,195.96,0.03]
[1755916529389,53.36876945,195.97,195.96,0.03]
[1755916529626,46.36,195.97,195.96,0.03]
[1755916530116,53.38876945,195.97,195.96,0.03]
[1755916530302,46.38,195.97,195.96,0.03]
[1755916530496,53.60876945,195.97,195.96,0.03]
[1755916530697,46.6,195.97,195.96,0.03]
[1755916531104,53.60876945,195.97,195.96,0.03]
[1755916531515,54.17876945,195.97,195.96,0.03]
[1755916531718,54.15876945,195.97,195.96,0.03]
[1755916531901,46.56,195.97,195.96,0.03]
[1755916532401,53.56876945,195.97,195.96,0.03]
[1755916532599,46.56,195.97,195.96,0.03]
[1755916532825,54.15876945,195.97,195.96,0.03]
[1755916534335,47.15,195.97,195.96,0.03]
[1755916534692,54.15876945,195.97,195.96,0.03]
[1755916536716,2.103684,195.98,195.96,0.03]
[1755916536897,53.48876945,195.97,195.96,0.03]
[1755916537535,2.103684,195.98,195.96,0.73]
[1755916537860,2.103684,195.98,195.97,0.7]
[1755916538012,46.46,195.98,195.97,0.7]
[1755916538519,46.46,195.98,195.96,0.03]
[1755916538910,0.06,195.98,195.97,0.7]
[1755916539552,46.54,195.98,195.97,0.7]
[1755916539914,53.54876945,195.98,195.96,0.03]
[1755916540113,46.54,195.98,195.96,0.03]
[1755916540312,0.06,195.98,195.96,0.03]
[1755916540552,0.06,195.98,195.97,0.7]
[1755916540845,46.5,195.98,195.97,0.7]
[1755916541018,0.06,196.0,195.97,7.70876945]
[1755916541212,46.42,195.99,195.98,0.7]
[1755916541610,46.42,195.99,195.96,0.03]
[1755916541810,46.42,195.99,195.97,0.7]
[1755916542034,46.42,195.99,195.96,0.03]
[1755916542409,47.07,195.99,195.96,0.03]
[1755916542843,7.00876945,195.97,195.96,0.03]
[1755916543043,46.38,195.97,195.96,0.03]
[1755916543508,54.03876945,195.97,195.96,0.03]
[1755916544137,59.14159131,195.97,195.96,0.03]
[1755916545510,52.13282186,195.97,195.96,0.03]
[1755916545738,59.14159131,195.97,195.96,0.03]
[1755916546311,59.14159131,195.97,195.83,0.7]
[1755916546312,26.0,195.93,195.83,0.7]
[1755916546510,46.26,195.92,195.83,0.7]
[1755916546756,7.00876945,195.88,195.83,0.7]
[1755916547049,46.28,195.87,195.84,7.70876945]
[1755916547248,46.26,195.86,195.85,0.7]
[1755916547553,46.24,195.86,195.85,0.7]
[1755916549231,0.65,195.97,195.85,7.70876945]
[1755916549521,7.008769,195.94,195.86,0.7]
[1755916549711,7.008769,195.94,195.86,7.70876945]
[1755916549712,46.22,195.93,195.86,7.70876945]
[1755916549912,7.00876945,195.9,195.84,7.00876945]
[1755916550131,46.2,195.89,195.84,0.7]
[1755916550340,53.20876945,195.89,195.85,0.7]
[1755916550513,46.2,195.89,195.85,0.7]
[1755916550838,53.20876945,195.89,195.85,0.7]
[1755916551737,53.20876945,195.89,195.83,7.70876945]
[1755916552036,7.00876945,195.88,195.83,7.70876945]
[1755916552242,53.208769,195.89,195.84,0.7]
[1755916552541,53.208769,195.89,195.85,0.73]
[1755916552753,46.14,195.88,195.85,0.73]
[1755916553134,79.0,195.95,195.85,0.73]
[1755916553135,46.08,195.87,195.86,0.7]
[1755916553324,46.08,195.87,195.85,0.03]
[1755916553945,46.08,195.87,195.85,0.73]
[1755916554154,14.29945467,196.05,195.86,7.70876945]
[1755916554155,0.65,195.96,195.86,7.70876945]
[1755916554339,46.06,195.95,195.88,7.00876945]
[1755916554528,2.044415,195.92,195.9,7.00876945]
[1755916554749,46.12,195.91,195.9,0.7]
[1755916555539,46.16,195.91,195.9,0.7]
[1755916556053,0.06,195.97,195.9,7.70876945]
[1755916556280,0.06,195.97,195.95,7.00876945]
[1755916556463,46.22,195.96,195.95,7.00876945]
[1755916556765,46.22,195.96,195.87,0.28432314]
[1755916556929,46.22,195.96,195.95,7.00876945]
[1755916557126,0.06,195.97,195.95,7.70876945]
[1755916557332,0.06,195.97,195.9,0.28432314]
[1755916557333,0.06,196.0,195.96,7.69876945]
[1755916557555,0.06,196.0,195.92,26.0]
[1755916557556,2.043266,196.07,195.99,7.00876945]
[1755916557846,0.06,196.11,195.95,26.0]
[1755916557847,46.36,196.06,196.05,7.00876945]
[1755916558058,0.06,196.11,196.05,7.69876945]
[1755916558239,0.06,196.11,196.08,7.00876945]
[1755916558442,46.38,196.09,196.08,7.69876945]
[1755916558739,46.38,196.09,196.0,7.29309259]
[1755916558740,46.38,196.09,196.05,0.69]
[1755916558948,46.38,196.09,196.01,0.28432314]
[1755916559144,46.38,196.09,196.01,0.97432314]
[1755916559342,46.38,196.09,196.01,7.69876945]
[1755916559563,46.38,196.09,195.96,13.59559401]
[1755916559564,0.06,196.09,196.02,0.69]
[1755916559858,47.08,196.08,196.0,0.69]
[1755916560032,7.00876945,196.03,195.96,0.69]
[1755916560232,47.16,196.02,195.94,7.00876945]
[1755916560562,0.7,196.06,195.95,0.69]
[1755916560741,46.5,196.05,195.98,7.00876945]
[1755916560935,0.7,196.04,195.95,0.69]
[1755916561356,7.00876945,196.01,195.92,0.69]
[1755916561559,47.36,196.0,195.89,0.69]
[1755916561736,0.7,195.99,195.9,7.00876945]
[1755916562052,7.00876945,195.97,195.89,0.69]
[1755916562265,5.10148455,196.03,195.94,7.00876945]
[1755916562266,0.7,196.03,195.94,7.00876945]
[1755916562430,5.10020522,196.08,195.99,7.00876945]
[1755916562431,46.66,196.02,195.99,7.00876945]
[1755916562630,46.68,196.01,195.98,7.00876945]
[1755916562833,46.68,196.01,195.99,7.69876945]
[1755916563258,46.68,196.01,195.98,7.00876945]
[1755916563453,47.38,196.01,195.94,0.14216157]
[1755916563657,47.38,196.01,195.9,13.59559401]
[1755916563658,0.7,196.0,195.9,0.69]
[1755916563941,7.00876945,195.99,195.9,0.69]
[1755916564147,7.70876945,195.98,195.92,7.00876945]
[1755916564359,0.7,195.98,195.93,10.7351698]
[1755916564670,46.66,195.97,195.95,10.7351698]
[1755916565037,0.7,196.02,195.96,11.4251698]
[1755916565268,57.4351698,196.01,195.92,0.69]
[1755916565444,10.7351698,195.98,195.89,0.03]
[1755916565643,0.7,196.0,195.91,10.7351698]
[1755916565644,10.7351698,195.97,195.91,10.7351698]
[1755916565968,10.7351698,195.95,195.89,10.7651698]
[1755916566146,26.0,196.03,195.89,0.03]
[1755916566147,57.3951698,195.94,195.89,0.03]
[1755916566339,57.3951698,195.93,195.89,0.03]
[1755916566542,0.7,195.92,195.89,0.03]
[1755916566741,46.66,195.93,195.89,0.03]
[1755916567053,0.7,195.92,195.89,0.03]
[1755916567472,46.66,195.93,195.89,10.7651698]
[1755916567642,46.66,195.93,195.9,10.7351698]
[1755916567843,46.66,195.93,195.91,10.7351698]
[1755916568182,46.66,195.93,195.89,0.03]
[1755916568183,47.36,195.93,195.89,0.03]
[1755916568360,47.36,195.93,195.89,10.7651698]
[1755916568564,0.7,195.92,195.89,0.03]
[1755916568872,11.4351698,195.92,195.89,0.03]
[1755916569085,46.66,195.93,195.89,0.03]
[1755916569251,0.7,195.91,195.89,0.03]
[1755916569846,0.7,195.9,195.89,0.03]
[1755916570275,11.4351698,195.9,195.89,0.03]
[1755916570450,0.7,195.9,195.89,0.03]
[1755916571081,11.4351698,195.9,195.89,0.03]
[1755916571302,0.7,195.9,195.89,0.03]
[1755916572066,10.7351698,195.93,195.89,0.03]
[1755916572261,0.7,195.9,195.89,0.03]
[1755916572779,57.2951698,195.92,195.89,0.03]
[1755916572948,46.56,195.92,195.89,0.03]
[1755916573264,0.7,195.91,195.89,0.03]
[1755916574257,0.7,195.9,195.89,0.03]
[1755916576576,10.765169,195.92,195.89,0.03]
[1755916576779,46.34,195.91,195.89,0.03]
[1755916576985,0.7,195.9,195.89,0.03]
[1755916577476,46.34,195.91,195.89,0.03]
[1755916577856,0.7,195.9,195.89,0.03]
[1755916579455,26.0,195.88,195.87,0.03]
[1755916579874,11.4351698,195.88,195.87,0.03]
[1755916580789,0.7,195.88,195.87,0.03]
[1755916580968,11.4351698,195.88,195.87,0.03]
[1755916584299,0.7,195.88,195.87,0.03]
[1755916584481,78.94,195.85,195.82,10.7351698]
[1755916584793,125.0,195.84,195.83,0.69]
[1755916585302,124.96,195.84,195.83,0.69]
[1755916586372,124.96,195.84,195.73,13.87991715]
[1755916586578,78.94,195.83,195.81,9.40353619]
[1755916586892,46.02,195.84,195.82,9.40353619]
[1755916587568,46.02,195.84,195.81,9.40353619]
[1755916588301,46.74,195.84,195.73,13.87991715]
[1755916588599,79.0,195.82,195.73,13.87991715]
[1755916588763,45.88,195.81,195.74,0.72]
[1755916588967,45.88,195.81,195.8,9.40353619]
[1755916589195,45.88,195.81,195.8,10.12353619]
[1755916589495,45.88,195.81,195.8,0.72]
[1755916589700,45.88,195.81,195.8,10.12353619]
[1755916590199,45.88,195.81,195.8,0.72]
[1755916590406,134.4,195.87,195.8,10.12353619]
[1755916590702,124.8,195.86,195.84,9.40353619]
[1755916590878,79.0,195.85,195.79,0.72]
[1755916591078,79.0,195.85,195.83,9.40353619]
[1755916591274,79.0,195.84,195.79,0.72]
[1755916591519,124.78,195.83,195.79,0.72]
[1755916591680,45.78,195.82,195.79,0.72]
[1755916591887,45.78,195.82,195.8,0.72]
[1755916592195,45.78,195.82,195.81,0.72]
[1755916592705,45.78,195.82,195.81,10.12353619]
[1755916593390,13.879917,195.91,195.82,0.28432314]
[1755916593631,13.879917,195.91,195.9,9.40353619]
[1755916593784,45.74,195.91,195.9,9.40353619]
[1755916593981,0.72,195.94,195.9,9.40353619]
[1755916594181,0.72,195.97,195.93,9.40353619]
[1755916594388,45.74,195.96,195.93,9.40353619]
[1755916594626,45.72,195.95,195.9,0.72]
[1755916594914,45.72,195.95,195.93,9.40353619]
[1755916595120,45.72,195.95,195.92,9.40353619]
[1755916595121,0.72,195.94,195.92,9.40353619]
[1755916595420,45.78,195.95,195.93,9.40353619]
[1755916596326,45.78,195.95,195.91,0.72]
[1755916596495,0.06,195.95,195.89,0.72]
[1755916596694,45.66,195.94,195.89,0.72]
[1755916596895,0.72,195.93,195.85,0.86216157]
[1755916597118,0.72,195.93,195.88,14.31014429]
[1755916597414,0.72,195.93,195.9,14.31014429]
[1755916597619,45.6,195.92,195.9,14.31014429]
[1755916597832,45.6,195.92,195.89,14.31014429]
[1755916597988,46.32,195.92,195.89,14.31014429]
[1755916598318,0.72,195.91,195.86,0.72]
[1755916598492,45.6,195.92,195.88,14.31014429]
[1755916598697,0.72,195.9,195.87,14.31014429]
[1755916598900,45.58,195.89,195.87,14.31014429]
[1755916599097,45.58,195.89,195.82,0.72]
[1755916599098,0.72,195.88,195.82,0.72]
[1755916599305,15.03014429,195.88,195.8,14.310144]
[1755916599491,15.03014429,195.88,195.79,0.72]
[1755916599492,0.72,195.87,195.82,14.31014429]
[1755916599693,46.28,195.86,195.79,0.72]
[1755916599891,46.28,195.86,195.82,14.31014429]
[1755916600127,0.72,195.85,195.79,0.72]
[1755916600292,0.72,195.85,195.81,14.31014429]
[1755916600610,45.56,195.86,195.82,14.31014429]
[1755916600799,45.56,195.86,195.83,14.31014429]
[1755916601120,46.28,195.86,195.82,14.31014429]
[1755916601330,45.56,195.86,195.82,14.31014429]
[1755916601504,46.28,195.86,195.83,14.31014429]
[1755916601698,46.28,195.86,195.84,14.31014429]
[1755916601899,79.0,195.85,195.83,14.31014429]
[1755916602102,79.0,195.85,195.84,14.31014429]
[1755916602303,79.0,195.85,195.84,15.03014429]
[1755916602635,79.0,195.85,195.84,0.72]
[1755916602819,45.68,195.85,195.84,15.03014429]
[1755916602985,45.68,195.86,195.84,15.03014429]
[1755916603320,45.7,195.88,195.86,0.28432314]
[1755916603622,45.7,195.87,195.86,0.28432314]
[1755916603988,45.68,195.89,195.86,0.28432314]
[1755916604221,45.68,195.89,195.87,13.59559401]
[1755916604423,45.68,195.89,195.88,0.72]
[1755916604622,45.72,195.92,195.88,0.72]
[1755916604828,45.72,195.92,195.89,0.28432314]
[1755916605013,45.72,195.92,195.91,14.31014429]
[1755916605222,45.72,195.92,195.91,0.72]
[1755916605429,0.06,195.95,195.91,15.31446743]
[1755916605586,45.7,195.94,195.92,1.00432314]
[1755916605792,45.7,195.94,195.93,14.59446743]
[1755916606690,45.7,195.94,195.93,14.31014429]
[1755916607516,45.7,195.94,195.89,26.0]
[1755916607720,0.72,195.93,195.92,14.31014429]
[1755916607914,15.03014429,195.93,195.86,14.31014429]
[1755916608126,79.0,195.92,195.82,0.72]
[1755916608295,94.03014429,195.91,195.8,0.75]
[1755916608498,45.68,195.9,195.85,14.31014429]
[1755916608731,14.31014429,195.88,195.8,0.03]
[1755916608899,213.4,195.87,195.8,0.03]
[1755916609088,45.66,195.86,195.82,14.31014429]
[1755916609291,0.72,195.85,195.82,14.31014429]
[1755916609529,0.72,195.84,195.8,0.03]
[1755916609705,79.0,195.83,195.82,14.31014429]
[1755916610088,79.72,195.83,195.8,0.03]
[1755916610294,46.4,195.82,195.81,14.31014429]
[1755916610724,46.4,195.82,195.8,0.03]
[1755916610900,45.68,195.82,195.8,0.03]
[1755916611229,0.72,195.86,195.81,14.31014429]
[1755916611538,0.72,195.86,195.85,14.31014429]
[1755916611710,46.48,195.86,195.85,14.31014429]
[1755916611915,46.48,195.86,195.8,0.03]
[1755916612094,46.48,195.86,195.83,14.31014429]
[1755916612294,0.72,195.85,195.8,0.03]
[1755916612527,0.72,195.85,195.84,14.31014429]
[1755916612725,0.72,195.85,195.83,14.31014429]
[1755916613029,0.72,195.85,195.84,14.31014429]
[1755916614196,0.72,195.85,195.8,0.03]
[1755916614403,0.72,195.85,195.84,14.31014429]
[1755916614824,0.72,195.85,195.8,0.03]
[1755916615002,45.76,195.86,195.84,14.31014429]
[1755916615208,45.76,195.86,195.85,14.31014429]
[1755916615404,45.76,195.86,195.81,0.72]
[1755916615614,45.76,195.86,195.84,14.31014429]
[1755916615817,45.76,195.86,195.85,14.31014429]
[1755916616224,0.72,195.91,195.85,14.31014429]
[1755916616403,0.72,195.91,195.83,0.72]
[1755916616404,45.58,195.9,195.88,14.31014429]
[1755916616801,45.58,195.9,195.89,14.31014429]
[1755916617139,45.58,195.9,195.84,14.59446743]
[1755916617310,45.58,195.9,195.89,0.72]
[1755916617828,45.58,195.93,195.9,0.28432314]
[1755916618007,45.58,195.93,195.92,14.31014429]
[1755916618404,45.58,195.93,195.92,15.03014429]
[1755916618602,45.58,195.93,195.92,14.31014429]
[1755916618938,45.58,195.93,195.92,15.31446743]
[1755916620238,0.06,195.95,195.93,13.87991715]
[1755916620531,0.06,196.0,195.97,0.28432314]
[1755916620717,0.06,196.0,195.99,14.59446743]
[1755916620927,0.06,196.0,195.99,28.19006144]
[1755916621098,0.06,196.0,195.99,28.91006144]
[1755916622995,0.06,196.0,195.99,0.28432314]
[1755916623298,0.06,196.0,195.99,14.31014429]
[1755916623529,0.74,196.0,195.98,14.31014429]
[1755916623733,46.04,195.99,195.96,14.31014429]
[1755916624037,46.04,195.99,195.97,14.31014429]
[1755916624343,45.36,195.99,195.98,14.31014429]
[1755916624835,46.04,195.99,195.97,14.31014429]
[1755916625124,0.68,195.98,195.89,0.72]
[1755916625328,0.68,195.98,195.93,14.31014429]
[1755916625512,0.68,195.97,195.94,14.31014429]
[1755916625717,0.68,195.96,195.87,13.59559401]
[1755916625938,0.68,195.96,195.9,14.31014429]
[1755916626497,14.31014429,195.94,195.88,14.34014429]
[1755916626848,46.02,195.93,195.88,14.34014429]
[1755916627137,0.68,195.92,195.88,14.34014429]
[1755916627346,45.34,195.93,195.88,14.34014429]
[1755916627518,0.68,195.91,195.88,14.34014429]
[1755916627701,0.68,195.9,195.88,14.34014429]
[1755916628202,0.68,195.9,195.88,0.03]
[1755916628401,0.68,195.89,195.88,0.03]
[1755916629907,0.06,196.0,195.88,0.03]
[1755916629908,0.68,195.92,195.88,0.03]
[1755916630107,0.06,196.0,195.89,14.31014429]
[1755916630108,45.92,195.91,195.89,14.31014429]
[1755916630332,45.24,195.9,195.88,14.34014429]
[1755916630516,45.24,195.89,195.88,14.34014429]
[1755916630828,45.92,195.89,195.88,0.03]
[1755916632417,45.24,195.89,195.88,14.34014429]
[1755916632733,45.92,195.89,195.88,14.34014429]
[1755916632934,45.92,195.89,195.88,0.03]
[1755916633430,60.23014429,195.89,195.8,0.03]
[1755916633639,14.31014429,195.86,195.8,0.03]
[1755916633934,14.31014429,195.85,195.8,0.03]
[1755916634128,45.92,195.84,195.8,0.03]
[1755916634331,45.92,195.84,195.8,14.34014429]
[1755916634532,0.68,195.83,195.8,0.03]
[1755916635343,0.68,195.82,195.8,0.03]
[1755916635805,0.68,195.81,195.8,0.03]
[1755916636944,45.82,195.81,195.8,0.03]
[1755916639312,45.08,195.81,195.8,0.03]
[1755916639521,45.76,195.81,195.8,0.03]
[1755916639844,45.08,195.81,195.8,0.03]
[1755916640336,45.76,195.81,195.8,0.03]
[1755916640917,0.68,195.81,195.8,0.03]
[1755916641132,45.7,195.81,195.8,0.03]
[1755916641950,60.01014429,195.81,195.8,0.03]
[1755916643038,45.7,195.81,195.8,0.03]
[1755916643339,26.0,195.79,195.78,0.03]
[1755916643720,26.0,195.79,195.57,0.72]
[1755916643721,40.99014429,195.79,195.57,0.72]
[1755916643919,26.0,195.75,195.57,0.72]
[1755916644118,14.31014429,195.67,195.6,14.31014429]
[1755916644443,26.0,195.75,195.61,0.72]
[1755916644444,44.02,195.66,195.61,0.72]
[1755916644642,45.0,195.66,195.62,0.72]
[1755916644837,45.04,195.69,195.65,14.31014429]
[1755916645046,45.04,195.69,195.66,14.31014429]
[1755916645227,45.04,195.69,195.66,0.72]
[1755916645416,45.04,195.69,195.66,15.03014429]
[1755916645736,45.04,195.69,195.66,14.31014429]
[1755916645944,45.04,195.69,195.68,14.31014429]
[1755916646124,45.04,195.69,195.63,0.72]
[1755916646324,45.04,195.69,195.68,14.31014429]
[1755916646722,45.04,195.69,195.63,0.72]
[1755916646923,45.04,195.69,195.67,14.31014429]
[1755916647346,45.04,195.69,195.68,14.31014429]
[1755916647547,45.04,195.69,195.67,14.31014429]
[1755916647931,45.04,195.69,195.68,14.31014429]
[1755916648938,45.04,195.69,195.63,0.72]
[1755916649138,45.04,195.69,195.68,14.31014429]
[1755916649545,45.69,195.69,195.63,0.72]
[1755916649844,45.04,195.69,195.63,0.72]
[1755916650356,45.04,195.69,195.68,14.31014429]
[1755916650650,45.69,195.69,195.67,14.31014429]
[1755916650938,45.69,195.69,195.68,14.31014429]
[1755916651148,45.04,195.69,195.68,14.31014429]
[1755916651723,45.04,195.69,195.62,0.69]
[1755916652026,45.69,195.69,195.68,14.31014429]
[1755916652859,45.69,195.69,195.59,0.69]
[1755916653021,0.65,195.68,195.59,0.69]
[1755916653229,45.04,195.69,195.67,14.31014429]
[1755916653430,45.69,195.69,195.68,14.31014429]
[1755916653970,45.69,195.69,195.67,14.31014429]
[1755916654168,0.65,195.68,195.61,0.69]
[1755916654674,0.65,195.68,195.59,0.69]
[1755916655370,0.65,195.68,195.65,14.31014429]
[1755916655536,0.65,195.67,195.65,14.31014429]
[1755916655736,0.65,195.66,195.65,14.31014429]
[1755916655936,0.65,195.66,195.61,0.03]
[1755916656132,79.0,195.65,195.63,14.31014429]
[1755916656353,123.88,195.64,195.61,0.03]
[1755916656570,44.88,195.63,195.61,0.03]
[1755916656777,44.88,195.62,195.61,0.03]
[1755916657346,44.88,195.62,195.61,14.34014429]
[1755916657545,44.88,195.62,195.61,0.03]
[1755916657751,45.53,195.62,195.61,0.03]
[1755916658051,45.53,195.62,195.61,14.34014429]
[1755916658249,45.53,195.62,195.61,0.03]
[1755916658456,45.53,195.62,195.61,14.34014429]
[1755916658662,45.53,195.62,195.61,0.03]
[1755916658842,45.53,195.62,195.61,14.34014429]
[1755916659048,45.53,195.62,195.61,0.03]
[1755916659355,45.53,195.62,195.61,14.34014429]
[1755916659769,45.53,195.62,195.61,0.03]
[1755916663257,0.65,195.67,195.61,14.34014429]
[1755916663489,44.92,195.66,195.64,14.31014429]
[1755916663668,0.65,195.65,195.61,0.03]
[1755916664062,0.65,195.64,195.61,0.03]
[1755916664258,0.65,195.64,195.62,14.31014429]
[1755916664565,44.92,195.66,195.63,14.31014429]
[1755916664784,45.57,195.66,195.64,14.31014429]
[1755916665582,0.65,195.65,195.61,0.03]
[1755916665766,0.65,195.65,195.62,14.31014429]
[1755916665967,0.65,195.64,195.62,14.31014429]
[1755916666679,44.92,195.66,195.62,14.31014429]
[1755916666888,0.65,195.63,195.61,0.03]
[1755916667058,5.08633636,195.68,195.62,14.31014429]
[1755916667059,0.65,195.65,195.62,14.31014429]
[1755916667266,45.53,195.64,195.63,14.31014429]
[1755916667466,45.53,195.64,195.62,14.31014429]
[1755916667768,45.53,195.64,195.61,0.03]
[1755916667769,0.65,195.63,195.61,0.03]
[1755916668279,0.65,195.62,195.61,0.03]
[1755916671484,2.047449,195.64,195.61,0.03]
[1755916671672,0.06,195.66,195.63,14.31014429]
[1755916671879,45.53,195.65,195.61,0.03]
[1755916672094,0.06,195.66,195.64,14.31014429]
[1755916672282,0.06,195.66,195.65,14.31014429]
[1755916672469,44.94,195.66,195.61,0.03]
[1755916672677,44.94,195.66,195.65,14.31014429]
[1755916673082,44.94,195.66,195.62,0.69]
[1755916673387,44.94,195.66,195.65,14.31014429]
[1755916674802,44.94,195.66,195.61,0.03]
[1755916675120,44.94,195.66,195.65,14.31014429]
[1755916675482,45.59,195.66,195.65,14.31014429]
[1755916676206,44.94,195.66,195.65,14.31014429]
[1755916676406,45.59,195.66,195.61,0.03]
[1755916676588,45.59,195.66,195.65,14.31014429]
[1755916676793,0.65,195.65,195.61,0.03]
[1755916676995,0.65,195.65,195.64,14.31014429]
[1755916677376,0.65,195.65,195.63,14.31014429]
[1755916677579,44.94,195.66,195.64,14.31014429]
[1755916678015,44.94,195.66,195.61,0.03]
[1755916678308,0.72,195.65,195.63,14.31014429]
[1755916678510,0.72,195.65,195.62,14.31014429]
[1755916678708,0.72,195.65,195.61,0.03]
[1755916679019,0.72,195.65,195.62,14.31014429]
[1755916679314,44.94,195.66,195.62,14.31014429]
[1755916679519,44.94,195.66,195.61,0.03]
[1755916679520,44.94,195.66,195.65,14.31014429]
[1755916680000,45.66,195.66,195.63,14.31014429]
[1755916680199,44.94,195.66,195.65,14.31014429]
[1755916680710,45.66,195.66,195.65,14.31014429]
[1755916680889,44.94,195.66,195.65,14.31014429]
[1755916681089,44.94,195.66,195.61,0.03]
[1755916681305,44.94,195.66,195.65,14.31014429]
[1755916681513,79.0,195.65,195.61,0.03]
[1755916681717,79.0,195.64,195.61,0.03]
[1755916681899,79.0,195.63,195.62,0.7]
[1755916682293,44.94,195.66,195.62,0.7]
[1755916682905,44.94,195.66,195.65,14.31014429]
[1755916683621,44.94,195.66,195.65,15.01014429]